bitfinex/quotes_SOLUSD_20250508
["timestamp","ask_amount","ask_price","bid_price","bid_amount"]
[1746743870537,33.96,161.05,161.03,19.56026375]
[1746743871649,40.16925542,161.05,161.02,19.56026375]
[1746743871958,40.16925542,161.05,161.01,19.56026375]
[1746743872541,40.16925542,161.05,161.02,19.56026375]
[1746743875059,40.16925542,161.05,160.98,6.21180601]
[1746743875060,40.16925542,161.05,161.01,19.56026375]
[1746743875366,40.16925542,161.05,160.98,6.21188455]
[1746743875655,40.16925542,161.05,161.02,19.56026375]
[1746743878573,19.56026375,161.04,160.97,45.9]
[1746743878775,40.16925542,161.05,160.98,19.56026375]
[1746743878776,19.56026375,161.03,160.98,19.56026375]
[1746743880364,6.21040864,161.02,160.98,19.56026375]
[1746743880590,49.48312946,161.05,161.01,19.56026375]
[1746743880865,6.20963735,161.04,161.02,19.56026375]
[1746743881063,6.20963735,161.04,161.01,19.56026375]
[1746743881571,6.20963735,161.04,161.02,19.56026375]
[1746743881867,40.16937636,161.05,161.02,19.56026375]
[1746743883549,23.18937636,161.05,160.99,6.21153139]
[1746743883855,16.98,161.05,161.04,19.56026375]
[1746743884057,23.18925178,161.05,161.03,19.56026375]
[1746743884261,23.18925178,161.05,160.97,6.2123377]
[1746743884563,23.18925178,161.05,161.02,19.56026375]
[1746743885375,16.98,161.05,161.03,19.56026375]
[1746743885668,16.98,161.05,161.04,19.56026375]
[1746743886268,6.2077708,161.09,161.02,1.5791]
[1746743886577,6.2077708,161.09,161.07,19.56026375]
[1746743886781,6.2077708,161.09,161.02,1.5791]
[1746743886951,6.2077708,161.09,161.06,19.56026375]
[1746743887855,6.2077708,161.09,161.02,1.5791]
[1746743887856,6.2077708,161.09,161.05,19.56026375]
[1746743888465,19.56026375,161.08,161.02,1.5791]
[1746743888781,19.56026375,161.07,161.02,19.56026375]
[1746743888961,21.72704573,161.09,161.03,19.56026375]
[1746743889154,21.72704573,161.09,161.05,19.56026375]
[1746743889656,41.28730948,161.09,161.05,19.56026375]
[1746743891184,21.72704573,161.09,161.05,19.56026375]
[1746743891366,41.28730948,161.09,161.01,6.2107719]
[1746743891680,6.20848078,161.07,161.05,19.56026375]
[1746743892675,6.20809535,161.08,161.05,19.56026375]
[1746743893076,6.20809535,161.08,161.04,19.56026375]
[1746743893584,19.56026375,161.07,161.0,26.0]
[1746743893765,19.56026375,161.07,161.02,19.56026375]
[1746743894164,19.56026375,161.07,161.0,26.0]
[1746743894165,19.56026375,161.05,161.0,19.56026375]
[1746743894566,36.52026375,161.05,161.0,19.56026375]
[1746743895089,6.20963735,161.04,161.0,19.56026375]
[1746743895606,23.16933984,161.05,161.01,19.56026375]
[1746743895891,23.16933984,161.05,161.02,19.56026375]
[1746743896391,23.16933984,161.05,160.99,26.0]
[1746743896392,16.96,161.05,161.04,19.56026375]
[1746743898474,16.96,161.05,161.04,25.7699011]
[1746743898675,176.37177081,161.1,161.04,25.7699011]
[1746743898972,176.37177081,161.1,161.06,19.56026375]
[1746743900164,3.89184302,161.09,161.06,19.56026375]
[1746743900688,10.09955725,161.09,161.05,19.56026375]
[1746743900883,3.89184302,161.08,161.05,19.56026375]
[1746743901075,3.89184302,161.08,161.06,19.56026375]
[1746743901783,3.89184302,161.07,161.06,19.56026375]
[1746743902087,3.89184302,161.07,161.04,6.20963735]
[1746743902289,3.89184302,161.07,161.06,19.56026375]
[1746743905290,3.89184302,161.07,161.06,25.76913001]
[1746743906087,3.89184302,161.09,161.06,25.76913001]
[1746743906281,3.89184302,161.09,161.08,19.56026375]
[1746743910702,10.09955299,161.09,161.04,1.6664]
[1746743911001,10.09955299,161.09,161.05,19.56026375]
[1746743911175,10.09955299,161.09,161.06,19.56026375]
[1746743911895,3.89184302,161.08,161.06,19.56026375]
[1746743912095,3.89184302,161.08,161.04,1.6664]
[1746743912096,6.20848078,161.07,161.04,1.6664]
[1746743912387,6.20848078,161.07,161.0,116.47668391]
[1746743912388,6.20848078,161.07,161.03,19.56026375]
[1746743912596,25.76874453,161.07,161.02,19.56026375]
[1746743912996,3.89184302,161.06,161.02,19.56026375]
[1746743913201,19.56026375,161.05,160.96,6.21272365]
[1746743913407,16.96,161.05,160.99,19.56026375]
[1746743913705,16.96,161.05,160.97,26.0]
[1746743913899,16.96,161.05,161.0,19.56026375]
[1746743913900,3.89184302,161.04,161.0,19.56026375]
[1746743914209,6.21002297,161.03,160.99,19.56026375]
[1746743914368,6.21002297,161.03,160.95,26.83168423]
[1746743914574,25.77028672,161.03,160.99,19.56026375]
[1746743914774,19.56026375,161.02,160.98,19.56026375]
[1746743915185,6.21002297,161.03,160.98,19.56026375]
[1746743915402,6.21002297,161.03,161.01,19.56026375]
[1746743915986,6.21002297,161.03,161.0,19.56026375]
[1746743916310,6.20963735,161.04,161.0,19.56026375]
[1746743916470,6.20963735,161.04,161.01,19.56026375]
[1746743916471,3.88297972,161.03,161.01,19.56026375]
[1746743917209,3.88297972,161.02,161.01,19.56026375]
[1746743918581,23.16927975,161.05,161.01,19.56026375]
[1746743918582,3.88297972,161.04,161.01,19.56026375]
[1746743918780,3.88297972,161.04,161.03,19.56026375]
[1746743920297,16.96,161.06,161.03,19.56026375]
[1746743920489,16.96,161.06,161.05,19.56026375]
[1746743921101,16.96,161.06,161.0,6.2111599]
[1746743921293,16.96,161.06,161.05,19.56026375]
[1746743924806,6.20820231,161.08,161.05,19.56026375]
[1746743925106,6.20820231,161.08,161.06,19.56026375]
[1746743925394,3.86324226,161.07,161.06,19.56026375]
[1746743925986,3.86324226,161.07,161.06,27.32823001]
[1746743926390,16.96,161.12,161.07,18.64964886]
[1746743926698,16.96,161.12,161.11,19.56026375]
[1746743926874,16.96,161.16,161.11,19.56026375]
[1746743927077,16.96,161.16,161.14,19.56026375]
[1746743927500,23.16512057,161.16,161.14,19.56026375]
[1746743928879,23.16512057,161.16,161.07,18.64964886]
[1746743929087,23.16512057,161.16,161.13,19.56026375]
[1746743929288,38.67765469,161.16,161.13,19.56026375]
[1746743929488,41.27791844,161.16,161.11,19.56026375]
[1746743929695,58.21791844,161.16,161.12,19.56026375]
[1746743930219,58.21791844,161.16,161.06,27.5591]
[1746743930410,58.21791844,161.16,161.1,19.56026375]
[1746743930411,19.56026375,161.15,161.1,19.56026375]
[1746743930915,19.56026375,161.15,161.06,27.5591]
[1746743931094,19.56026375,161.15,161.1,19.56026375]
[1746743931496,6.20578379,161.14,161.1,19.56026375]
[1746743932411,21.72024326,161.14,161.1,19.56026375]
[1746743933425,35.07472322,161.14,161.1,19.56026375]
[1746743935208,15.51445947,161.14,161.11,19.56026375]
[1746743935402,15.51445947,161.14,161.1,19.56026375]
[1746743937325,21.72024326,161.14,161.1,19.56026375]
[1746743938423,6.20578379,161.14,161.13,19.56026375]
[1746743939096,6.20552251,161.15,161.12,19.56026375]
[1746743939319,6.20552251,161.15,161.13,19.56026375]
[1746743940427,6.20552251,161.15,161.09,26.0]
[1746743940801,6.20552251,161.15,161.11,19.56026375]
[1746743941007,6.20552251,161.15,161.12,19.56026375]
[1746743941634,6.20501365,161.16,161.09,32.20763901]
[1746743941924,6.20501365,161.16,161.13,19.56026375]
[1746743942131,6.20501365,161.16,161.12,19.56026375]
[1746743943038,6.20501365,161.16,161.13,19.56026375]
[1746743943837,6.20501365,161.16,161.12,19.56026375]
[1746743947743,6.20501365,161.16,161.12,12.20522767]
[1746743948947,6.20501365,161.16,161.09,26.0]
[1746743949125,6.20501365,161.16,161.12,12.20522767]
[1746743950313,6.20501365,161.16,161.14,12.20522767]
[1746743951524,23.12387788,161.19,161.15,12.20522767]
[1746743951711,17.01953189,161.23,161.12,45.9672288]
[1746743951712,16.92,161.21,161.18,12.20522767]
[1746743951908,33.84,161.21,161.19,12.20522767]
[1746743952137,33.84,161.21,161.13,18.64964886]
[1746743952329,33.84,161.21,161.18,12.20522767]
[1746743952835,16.92,161.21,161.19,12.20522767]
[1746743954243,16.92,161.21,161.17,3.07940394]
[1746743954433,16.92,161.21,161.2,12.20522767]
[1746743954633,6.20240925,161.23,161.2,12.20522767]
[1746743954824,159.36633022,161.24,161.22,12.20522767]
[1746743955024,23.12202687,161.24,161.22,12.20522767]
[1746743955732,23.12202687,161.24,161.21,19.50679776]
[1746743956546,6.20202687,161.24,161.21,19.50679776]
[1746743956728,6.20202687,161.24,161.22,19.50679776]
[1746743957622,6.20202687,161.24,161.21,19.50679776]
[1746743958640,6.20202687,161.24,161.18,7.72848081]
[1746743958946,6.20202687,161.24,161.21,19.50679776]
[1746743959328,6.20202687,161.24,161.18,1.5243]
[1746743959538,23.10202687,161.24,161.21,19.50679776]
[1746743960335,23.10202687,161.24,161.18,1.5243]
[1746743960656,23.10202687,161.24,161.2,19.50679776]
[1746743962749,23.10202687,161.24,161.18,1.5243]
[1746743962935,23.10202687,161.24,161.2,19.50679776]
[1746743963552,23.10202687,161.24,161.18,1.5243]
[1746743963728,23.10202687,161.24,161.2,19.50679776]
[1746743965247,23.10202687,161.24,161.21,19.50679776]
[1746743967764,6.20202687,161.24,161.22,19.50679776]
[1746743968051,6.20202687,161.24,161.18,7.72846471]
[1746743968255,6.20202687,161.24,161.21,19.50679776]
[1746743968434,6.20202687,161.24,161.22,19.50679776]
[1746743968842,6.20202687,161.24,161.18,7.72846471]
[1746743969154,6.20202687,161.24,161.21,19.50679776]
[1746743969654,21.70686437,161.24,161.2,19.50679776]
[1746743969957,6.20202687,161.24,161.21,19.50679776]
[1746743970862,6.20202687,161.24,161.22,19.50679776]
[1746743971452,6.20202687,161.24,161.21,19.50679776]
[1746743971754,23.10159552,161.25,161.23,19.50679776]
[1746743972348,23.10159552,161.25,161.18,7.728408]
[1746743972532,23.10159552,161.25,161.22,19.50679776]
[1746743972734,23.10159552,161.25,161.23,19.50679776]
[1746743972951,23.10159552,161.25,161.22,19.50679776]
[1746743974862,38.60547148,161.25,161.21,19.50679776]
[1746743975544,38.60547148,161.25,161.18,1.5243]
[1746743975748,58.11226924,161.25,161.2,19.50679776]
[1746743977768,50.79953712,161.25,161.2,12.19406564]
[1746743977944,50.79953712,161.25,161.21,12.19406564]
[1746743978546,38.60547148,161.25,161.21,12.19406564]
[1746743978865,50.79953712,161.25,161.21,12.19406564]
[1746743980565,12.19406564,161.24,161.18,1.5243]
[1746743980761,12.19406564,161.22,161.15,26.0]
[1746743980964,12.19406564,161.22,161.17,12.19406564]
[1746743981144,12.19406564,161.21,161.17,12.19406564]
[1746743981350,12.19406564,161.2,161.14,1.656]
[1746743981660,12.19406564,161.2,161.16,12.19406564]
[1746743981661,16.88,161.19,161.16,12.19406564]
[1746743982239,16.88,161.19,161.17,12.19406564]
[1746743982658,16.88,161.19,161.18,12.19406564]
[1746743984051,16.88,161.19,161.15,3.12387717]
[1746743984268,16.88,161.19,161.18,12.19406564]
[1746743987179,16.88,161.2,161.18,12.19406564]
[1746743987477,16.88,161.2,161.19,12.19406564]
[1746743994863,6.20318706,161.21,161.19,12.19406564]
[1746743996181,6.20318706,161.21,161.18,12.19406564]
[1746743997182,6.20318706,161.21,161.15,3.05474029]
[1746743997362,6.20318706,161.21,161.17,12.19406564]
[1746743997863,6.20318706,161.21,161.14,27.656]
[1746743998063,6.20318706,161.21,161.17,12.19406564]
[1746743998488,33.90497554,161.21,161.16,12.19406564]
[1746743998866,170.14927889,161.21,161.16,12.19406564]
[1746743999066,12.19406564,161.2,161.15,12.19406564]
[1746743999584,12.19406564,161.17,161.1,1.5356]
[1746743999789,16.86,161.16,161.13,12.19406564]
[1746744000170,16.86,161.16,161.14,12.19406564]
[1746744000386,16.86,161.16,161.1,1.5356]
[1746744000721,16.86,161.16,161.14,12.19406564]
[1746744001191,16.86,161.16,161.11,6.20684337]
[1746744001490,23.0650885,161.16,161.1,1.5356]
[1746744001673,23.0650885,161.16,161.12,12.19406564]
[1746744001874,23.0650885,161.16,161.13,12.19406564]
[1746744004297,16.86,161.16,161.13,12.19406564]
[1746744005797,23.06503355,161.16,161.13,12.19406564]
[1746744005994,23.06503355,161.16,161.12,12.19406564]
[1746744007802,16.86,161.16,161.14,12.19406564]
[1746744008297,16.86,161.16,161.15,12.19406564]
[1746744010101,16.86,161.16,161.14,12.19406564]
[1746744010713,23.06507975,161.16,161.14,12.19406564]
[1746744010874,23.06507975,161.16,161.13,12.19406564]
[1746744011581,23.06507975,161.16,161.12,12.19406564]
[1746744011792,35.25914539,161.16,161.11,12.19406564]
[1746744011996,35.25914539,161.16,161.1,4.64927021]
[1746744011997,23.06507975,161.16,161.12,12.19406564]
[1746744013193,16.86,161.16,161.14,12.19406564]
[1746744014012,16.86,161.16,161.13,12.19406564]
[1746744015015,23.06502799,161.16,161.13,12.19406564]
[1746744015605,16.86,161.17,161.15,12.19406564]
[1746744015815,16.86,161.17,161.16,12.19406564]
[1746744016512,16.86,161.17,161.13,6.20600401]
[1746744016717,16.86,161.17,161.12,44.40050524]
[1746744016913,23.06462865,161.17,161.16,12.19406564]
[1746744017101,23.06462865,161.17,161.12,26.0]
[1746744017417,23.06462865,161.17,161.15,12.19406564]
[1746744017600,23.06462865,161.17,161.16,12.19406564]
[1746744017800,23.06462865,161.17,161.15,12.19406564]
[1746744018196,23.06462865,161.17,161.1,4.64927021]
[1746744018411,23.06462865,161.17,161.13,12.19406564]
[1746744018603,12.19406564,161.15,161.1,1.5356]
[1746744018801,12.19406564,161.14,161.08,3.0631205]
[1746744019005,16.86,161.13,161.09,12.19406564]
[1746744019394,12.19406564,161.1,161.05,1.6532]
[1746744019593,12.19406564,161.1,161.05,13.84726564]
[1746744019817,29.05406564,161.11,161.06,12.19406564]
[1746744020092,6.20732464,161.1,161.06,12.19406564]
[1746744021120,23.06703978,161.11,161.08,12.19406564]
[1746744022705,23.06703978,161.11,161.05,1.6532]
[1746744022706,23.06703978,161.11,161.06,12.19406564]
[1746744022911,35.26110542,161.11,161.06,12.19406564]
[1746744023110,23.06703978,161.11,161.06,12.19406564]
[1746744023314,35.26110542,161.11,161.06,12.19406564]
[1746744024031,35.26110542,161.11,161.05,1.6532]
[1746744024215,35.26110542,161.11,161.06,12.19406564]
[1746744025210,23.06703978,161.11,161.07,12.19406564]
[1746744025619,23.06703978,161.11,161.08,12.19406564]
[1746744026019,23.06703978,161.11,161.07,12.19406564]
[1746744026212,35.26110542,161.11,161.06,12.19406564]
[1746744027001,23.06703978,161.11,161.07,12.19406564]
[1746744027731,23.06703978,161.11,161.05,1.6532]
[1746744027905,23.06703978,161.11,161.06,12.19406564]
[1746744028103,35.26110542,161.11,161.06,12.19406564]
[1746744028431,50.77845381,161.11,161.06,12.19406564]
[1746744028612,50.77845381,161.11,161.05,12.19406564]
[1746744028927,6.20770997,161.09,161.01,6.21066848]
[1746744029133,21.7269849,161.09,161.0,27.6257]
[1746744029309,12.19406564,161.08,161.03,12.19406564]
[1746744030029,21.7269849,161.09,161.04,12.19406564]
[1746744030234,33.92105054,161.09,161.04,12.19406564]
[1746744030435,21.7269849,161.09,161.04,12.19406564]
[1746744030753,33.92105054,161.09,161.04,12.19406564]
[1746744031432,6.20848078,161.07,161.03,12.19406564]
[1746744032635,6.20848078,161.07,161.04,12.19406564]
[1746744033308,6.20809535,161.08,161.04,12.19406564]
[1746744033707,6.20809535,161.08,161.0,36.98529046]
[1746744033938,6.20809535,161.08,161.04,12.19406564]
[1746744034645,21.7269849,161.09,161.04,12.19406564]
[1746744034929,33.92105054,161.09,161.04,12.19406564]
[1746744035637,21.7269849,161.09,161.04,12.19406564]
[1746744035839,142.4517326,161.1,161.08,12.19406564]
[1746744036012,23.06742925,161.1,161.08,12.19406564]
[1746744036839,6.20742925,161.1,161.08,12.19406564]
[1746744037718,6.20742925,161.1,161.09,12.19406564]
[1746744038542,23.06705079,161.11,161.09,12.19406564]
[1746744039044,16.86,161.11,161.1,12.19406564]
[1746744039853,136.24430335,161.13,161.1,12.19406564]
[1746744040144,136.24430335,161.13,161.12,12.19406564]
[1746744040350,6.20564291,161.15,161.12,12.19406564]
[1746744040646,6.20564291,161.15,161.14,12.19406564]
[1746744041138,6.20564291,161.15,161.13,12.19406564]
[1746744041516,6.20564291,161.15,161.14,12.19406564]
[1746744042128,39.92513025,161.16,161.14,12.19406564]
[1746744043351,39.92513025,161.16,161.13,12.19406564]
[1746744044044,39.92513025,161.16,161.14,12.19406564]
[1746744044552,23.06513025,161.16,161.14,12.19406564]
[1746744045452,23.06513025,161.16,161.13,12.19406564]
[1746744050357,23.06513025,161.16,161.14,0.03256809]
[1746744050651,16.86,161.16,161.15,12.19406564]
[1746744050858,16.86,161.16,161.14,12.22663373]
[1746744051758,16.86,161.16,161.15,12.19406564]
[1746744052959,23.06513544,161.16,161.14,12.22663373]
[1746744053270,23.06513544,161.16,161.14,0.03256809]
[1746744053455,23.06513544,161.16,161.14,12.22663373]
[1746744054355,23.06513544,161.16,161.15,12.19406564]
[1746744054356,16.86,161.16,161.15,12.19406564]
[1746744054553,16.86,161.16,161.14,0.03256809]
[1746744054757,16.86,161.16,161.14,12.22663373]
[1746744055560,16.86,161.16,161.14,0.03256809]
[1746744055561,23.06525495,161.16,161.14,0.03256809]
[1746744056053,23.06525495,161.16,161.14,12.22663373]
[1746744056653,16.86,161.16,161.15,12.19406564]
[1746744060970,16.86,161.16,161.14,0.03256809]
[1746744061149,16.86,161.16,161.15,12.19406564]
[1746744063967,16.86,161.16,161.14,0.03256809]
[1746744064162,6.20501365,161.16,161.14,12.22663373]
[1746744065270,6.2042437,161.18,161.14,12.22663373]
[1746744067174,6.2042437,161.18,161.16,12.19406564]
[1746744067857,39.86400766,161.19,161.16,12.19406564]
[1746744068478,39.86400766,161.19,161.14,0.03256809]
[1746744068782,55.37365466,161.19,161.14,12.22663373]
[1746744068939,55.37365466,161.19,161.15,12.19406564]
[1746744069145,39.86400766,161.19,161.16,12.19406564]
[1746744071753,52.0580733,161.19,161.15,12.19406564]
[1746744072172,52.0580733,161.19,161.14,0.03256809]
[1746744072367,52.0580733,161.19,161.15,12.19406564]
[1746744072569,39.86400766,161.19,161.15,12.19406564]
[1746744072760,39.86400766,161.19,161.16,12.19406564]
[1746744074174,23.02400766,161.19,161.16,12.19406564]
[1746744076182,23.02400766,161.19,161.14,0.03256809]
[1746744076351,39.86400766,161.19,161.16,12.19406564]
[1746744077868,39.86400766,161.19,161.14,0.03256809]
[1746744078048,39.86400766,161.19,161.16,12.19406564]
[1746744079778,3.83627182,161.18,161.16,12.19406564]
[1746744080358,10.04056245,161.18,161.16,12.19406564]
[1746744081063,6.20429063,161.18,161.16,12.19406564]
[1746744082379,3.84038505,161.17,161.16,12.19406564]
[1746744082970,3.84038505,161.17,161.14,0.03256809]
[1746744083295,3.84038505,161.17,161.16,12.19406564]
[1746744083981,3.84038505,161.17,161.15,12.19406564]
[1746744083982,10.0450137,161.17,161.15,12.19406564]
[1746744084979,3.84038505,161.16,161.15,12.19406564]
[1746744085664,10.04546828,161.16,161.14,0.03256809]
[1746744085869,3.84038505,161.15,161.14,0.03256809]
[1746744086068,3.84038505,161.15,161.14,12.22663373]
[1746744087863,3.84038505,161.15,161.14,0.03256809]
[1746744088062,3.84038505,161.15,161.14,12.22663373]
[1746744088682,10.04578374,161.15,161.14,0.03256809]
[1746744090766,10.04578374,161.15,161.14,12.22663373]
[1746744090983,3.84038505,161.15,161.14,12.22663373]
[1746744091579,10.04578374,161.15,161.14,0.03256809]
[1746744092879,10.04578374,161.15,161.14,12.22663373]
[1746744093385,136.24430335,161.24,161.14,12.22663373]
[1746744093594,16.82,161.23,161.2,12.19406564]
[1746744094086,23.02231966,161.23,161.21,12.19406564]
[1746744094270,23.02231966,161.23,161.15,1.5124]
[1746744094477,16.82,161.23,161.21,12.19406564]
[1746744094776,16.82,161.23,161.22,12.19406564]
[1746744094971,23.02231966,161.23,161.21,12.19406564]
[1746744096294,23.02231966,161.23,161.15,33.71743528]
[1746744096589,23.02231966,161.23,161.19,12.19406564]
[1746744096970,23.02231966,161.23,161.2,12.19406564]
[1746744097867,23.02231966,161.23,161.21,12.19406564]
[1746744098871,16.82,161.23,161.22,12.19406564]
[1746744099093,23.02231966,161.23,161.21,12.19406564]
[1746744101595,23.02231966,161.23,161.2,12.19406564]
[1746744101798,23.02231966,161.23,161.15,38.65667891]
[1746744102182,23.02231966,161.23,161.2,12.19406564]
[1746744102582,23.02231966,161.23,161.15,38.65667891]
[1746744102776,23.02231966,161.23,161.2,12.19406564]
[1746744103175,23.02231966,161.23,161.15,32.4514219]
[1746744103176,23.02231966,161.23,161.22,12.19406564]
[1746744103375,23.02231966,161.23,161.21,12.19406564]
[1746744104074,23.02231966,161.23,161.2,12.19406564]
[1746744104975,23.02231966,161.23,161.15,33.71764868]
[1746744105179,23.02231966,161.23,161.19,12.19406564]
[1746744105600,23.02231966,161.23,161.2,12.19406564]
[1746744106396,50.72218446,161.23,161.18,12.19406564]
[1746744106704,12.19406564,161.22,161.18,12.19406564]
[1746744106895,6.20308913,161.21,161.15,27.5124]
[1746744107192,6.20308913,161.21,161.18,12.19406564]
[1746744107408,6.20308913,161.21,161.17,12.19406564]
[1746744107580,6.20308913,161.21,161.18,12.19406564]
[1746744109004,6.20270437,161.22,161.18,12.19406564]
[1746744109686,6.20270437,161.22,161.21,0.03256809]
[1746744113184,18.39677001,161.22,161.21,0.03256809]
[1746744113710,37.04641887,161.22,161.21,0.03256809]
[1746744120835,43.11421887,161.22,161.21,0.03256809]
[1746744124219,30.92015323,161.22,161.21,0.03256809]
[1746744124416,43.11421887,161.22,161.21,0.03256809]
[1746744125815,44.64964886,161.18,161.08,12.19406564]
[1746744126012,12.19406564,161.13,161.08,12.19406564]
[1746744127012,6.20655412,161.12,161.08,12.19406564]
[1746744127210,6.20655412,161.12,161.09,12.19406564]
[1746744127822,12.19406564,161.16,161.11,12.19406564]
[1746744128044,12.19406564,161.16,161.12,12.19406564]
[1746744128905,18.39907929,161.16,161.11,12.19406564]
[1746744129300,33.91161341,161.16,161.11,12.19406564]
[1746744130621,6.20578379,161.14,161.11,12.19406564]
[1746744131314,33.9143089,161.14,161.07,1.5437]
[1746744131717,33.9143089,161.14,161.09,12.19406564]
[1746744132020,12.19406564,161.11,161.07,1.5437]
[1746744132206,12.19406564,161.1,161.07,1.5437]
[1746744132408,12.19406564,161.09,161.03,1.6169]
[1746744132720,6.20809535,161.08,161.04,12.19406564]
[1746744133032,18.40216099,161.08,161.03,13.81096564]
[1746744133326,33.92239938,161.08,161.03,13.81096564]
[1746744136622,33.92239938,161.08,161.04,12.19406564]
[1746744136827,136.4,161.1,161.07,12.19406564]
[1746744137009,33.6,161.13,161.09,12.19406564]
[1746744137211,33.6,161.14,161.12,12.19406564]
[1746744137413,16.8,161.14,161.13,12.19406564]
[1746744139525,23.00578379,161.14,161.13,12.19406564]
[1746744140713,16.8,161.14,161.13,12.19406564]
[1746744143227,23.00594549,161.14,161.09,7.71577423]
[1746744143425,16.8,161.14,161.13,12.19406564]
[1746744143729,23.00578379,161.14,161.13,12.19406564]
[1746744144731,16.8,161.14,161.13,12.19406564]
[1746744146328,23.00430323,161.18,161.13,12.19406564]
[1746744146524,39.80430323,161.18,161.17,12.19406564]
[1746744147402,33.6,161.18,161.17,12.19406564]
[1746744147613,39.8042437,161.18,161.17,12.19406564]
[1746744147838,23.0042437,161.18,161.17,12.19406564]
[1746744148344,16.8,161.18,161.17,12.19406564]
[1746744151720,22.98277255,161.22,161.17,12.19406564]
[1746744151922,22.98277255,161.22,161.21,12.19406564]
[1746744152314,22.98277255,161.22,161.2,12.19406564]
[1746744154132,6.20277255,161.22,161.21,12.19406564]
[1746744155057,159.38242615,161.23,161.21,12.19406564]
[1746744155245,159.38242615,161.23,161.22,12.19406564]
[1746744155436,16.78,161.23,161.22,12.19406564]
[1746744156246,22.98078129,161.27,161.22,13.76346564]
[1746744156447,22.98078129,161.27,161.26,12.19406564]
[1746744157028,16.78,161.27,161.26,12.19406564]
[1746744157230,159.38050273,161.28,161.26,12.19406564]
[1746744161657,159.38050273,161.28,161.23,3.04163047]
[1746744161835,22.98050273,161.28,161.22,1.5694]
[1746744162148,39.76050273,161.28,161.26,12.19406564]
[1746744164657,39.76050273,161.28,161.22,1.5694]
[1746744164864,1.0,161.31,161.23,6.1968]
[1746744165033,1.0,161.31,161.3,12.19406564]
[1746744171285,1.0,161.36,161.3,37.04334252]
[1746744171569,7.19732275,161.36,161.29,94.97267412]
[1746744171735,7.19732275,161.36,161.33,12.19406564]
[1746744171937,7.19732275,161.36,161.29,88.7728]
[1746744172232,7.19732275,161.36,161.35,12.19406564]
[1746744172432,1.0,161.36,161.35,12.19406564]
[1746744172872,7.19735652,161.36,161.35,12.19406564]
[1746744173243,1.0,161.36,161.35,12.19406564]
[1746744176364,1.0,161.36,161.32,1.6327]
[1746744176574,1.0,161.36,161.35,12.19406564]
[1746744177463,7.19732275,161.36,161.35,12.19406564]
[1746744178649,1.0,161.36,161.35,12.19406564]
[1746744178975,7.19732275,161.36,161.32,1.6327]
[1746744179143,7.19732275,161.36,161.35,12.19406564]
[1746744179545,7.19732275,161.36,161.32,1.6327]
[1746744179768,7.19732275,161.36,161.35,12.19406564]
[1746744181175,7.19732275,161.36,161.34,12.19406564]
[1746744182069,7.19732275,161.36,161.33,12.19406564]
[1746744182367,7.19732275,161.36,161.29,6.4728]
[1746744182568,7.19732275,161.36,161.33,12.19406564]
[1746744184172,7.19732275,161.36,161.34,12.19406564]
[1746744187354,7.19732275,161.36,161.35,12.19406564]
[1746744188657,7.19732275,161.36,161.29,17.52882479]
[1746744188857,7.19732275,161.36,161.35,12.19406564]
[1746744190669,7.19732275,161.36,161.29,17.52882657]
[1746744190878,7.19732275,161.36,161.34,12.19406564]
[1746744191180,7.19732275,161.36,161.35,12.19406564]
[1746744191378,7.19732275,161.36,161.34,12.19406564]
[1746744193162,1.0,161.36,161.35,12.19406564]
[1746744195365,1.0,161.36,161.32,6.19880401]
[1746744195575,1.0,161.36,161.35,12.19406564]
[1746744196167,1.0,161.36,161.32,6.19880401]
[1746744196380,1.0,161.36,161.3,6.19962802]
[1746744196567,1.0,161.36,161.35,12.19406564]
[1746744196964,1.0,161.36,161.3,6.19962802]
[1746744197170,1.0,161.36,161.35,12.19406564]
[1746744198895,1.0,161.36,161.32,6.19863134]
[1746744199069,1.0,161.36,161.35,12.19406564]
[1746744199867,7.19732275,161.36,161.35,12.19406564]
[1746744200271,1.0,161.36,161.35,12.19406564]
[1746744203379,1.0,161.36,161.35,30.58583812]
[1746744203676,1.0,161.36,161.35,18.39177248]
[1746744205400,1.0,161.36,161.35,30.58583812]
[1746744214289,136.4,161.45,161.38,26.0]
[1746744214501,22.9135432,161.46,161.44,12.19406564]
[1746744214703,22.9135432,161.46,161.45,12.19406564]
[1746744214911,6.1935432,161.46,161.45,12.19406564]
[1746744215092,6.19320274,161.47,161.45,12.19406564]
[1746744215403,6.19320274,161.47,161.46,12.19406564]
[1746744215616,16.72,161.48,161.46,12.19406564]
[1746744215788,16.72,161.48,161.47,12.19406564]
[1746744216523,22.91271736,161.48,161.47,12.19406564]
[1746744217009,22.91271736,161.48,161.44,12.19406564]
[1746744217185,22.91271736,161.48,161.47,12.19406564]
[1746744217592,22.91271736,161.48,161.42,26.0]
[1746744217793,22.91271736,161.48,161.47,12.19406564]
[1746744220411,16.72,161.48,161.47,12.19406564]